[Event "Titled Tuesday Blitz November 15 Late 2022"]
[White "Romero Ruscalleda, Josep"]
[Black "Winkels, Marcel"]
[WhiteFideId "2231859"]
[BlackFideId "1003887"]
[WhiteElo "2183"]
[BlackElo "1900"]
[Result "0-1"]
[Round "09"]
[TimeControl "180+1"]
[Date "2022.11.16"]
[WhiteClock "0:00:08"]
[BlackClock "0:00:09"]

1. e4 {[%clk 0:03:00]}  c5 {[%clk 0:03:00]} 2. c3 {[%clk 0:03:00]}  d6 {[%clk 0:03:01]} 3. d4 {[%clk 0:03:00]}  Nf6 {[%clk 0:03:00]} 4. Bd3 {[%clk 0:02:59]}  cxd4 {[%clk 0:02:58]} 5. cxd4 {[%clk 0:02:59]}  g6 {[%clk 0:02:57]} 6. Nc3 {[%clk 0:02:59]}  Bg7 {[%clk 0:02:57]} 7. h3 {[%clk 0:02:58]}  O-O {[%clk 0:02:56]} 8. Be3 {[%clk 0:02:57]}  Nc6 {[%clk 0:02:56]} 9. Nge2 {[%clk 0:02:56]}  e5 {[%clk 0:02:57]} 10. d5 {[%clk 0:02:55]}  Ne7 {[%clk 0:02:56]} 11. O-O {[%clk 0:02:55]}  Ne8 {[%clk 0:02:55]} 12. f4 {[%clk 0:02:54]}  exf4 {[%clk 0:02:44]} 13. Nxf4 {[%clk 0:02:39]}  a6 {[%clk 0:02:34]} 14. a4 {[%clk 0:02:38]}  Nf6 {[%clk 0:02:28]} 15. a5 {[%clk 0:02:36]}  Nd7 {[%clk 0:02:27]} 16. Bc2 {[%clk 0:02:19]}  Ne5 {[%clk 0:02:14]} 17. Bb6 {[%clk 0:02:19]}  Qe8 {[%clk 0:02:11]} 18. Qe2 {[%clk 0:02:05]}  Bd7 {[%clk 0:02:10]} 19. Rf2 {[%clk 0:01:57]}  Bb5 {[%clk 0:01:58]} 20. Nxb5 {[%clk 0:01:54]}  Qxb5 {[%clk 0:01:58]} 21. Qxb5 {[%clk 0:01:27]}  axb5 {[%clk 0:01:56]} 22. Bd1 {[%clk 0:01:21]}  Nc4 {[%clk 0:01:52]} 23. Rb1 {[%clk 0:00:58]}  Nxa5 {[%clk 0:01:48]} 24. Rc2 {[%clk 0:00:55]}  Nc4 {[%clk 0:01:47]} 25. Bf2 {[%clk 0:00:53]}  Rfc8 {[%clk 0:01:44]} 26. Be2 {[%clk 0:00:47]}  Be5 {[%clk 0:01:36]} 27. Nd3 {[%clk 0:00:45]}  Bf6 {[%clk 0:01:26]} 28. Rbc1 {[%clk 0:00:36]}  Nxb2 {[%clk 0:01:11]} 29. Rxc8+ {[%clk 0:00:31]}  Rxc8 {[%clk 0:01:09]} 30. Rb1 {[%clk 0:00:29]}  Rc2 {[%clk 0:01:02]} 31. Bf1 {[%clk 0:00:29]}  Bc3 {[%clk 0:00:35]} 32. Nxb2 {[%clk 0:00:29]}  Bxb2 {[%clk 0:00:34]} 33. Bxb5 {[%clk 0:00:28]}  f5 {[%clk 0:00:30]} 34. Bd3 {[%clk 0:00:27]}  Rd2 {[%clk 0:00:29]} 35. exf5 {[%clk 0:00:27]}  Nxf5 {[%clk 0:00:28]} 36. Bc4 {[%clk 0:00:21]}  Rc2 {[%clk 0:00:18]} 37. Bb3 {[%clk 0:00:20]}  Rd2 {[%clk 0:00:18]} 38. g4 {[%clk 0:00:19]}  Nd4 {[%clk 0:00:17]} 39. Be3 {[%clk 0:00:18]}  Rd3 {[%clk 0:00:14]} 40. Bxd4 {[%clk 0:00:17]}  Bxd4+ {[%clk 0:00:13]} 41. Kg2 {[%clk 0:00:17]}  Rd2+ {[%clk 0:00:12]} 42. Kg3 {[%clk 0:00:17]}  b6 {[%clk 0:00:12]} 43. Bc4 {[%clk 0:00:15]}  Bc5 {[%clk 0:00:12]} 44. Rf1 {[%clk 0:00:14]}  Rd4 {[%clk 0:00:10]} 45. Bb3 {[%clk 0:00:14]}  Rb4 {[%clk 0:00:09]} 46. Rf3 {[%clk 0:00:14]}  Kg7 {[%clk 0:00:08]} 47. Bc2 {[%clk 0:00:13]}  b5 {[%clk 0:00:08]} 48. Rb3 {[%clk 0:00:12]}  Rxb3+ {[%clk 0:00:07]} 49. Bxb3 {[%clk 0:00:13]}  b4 {[%clk 0:00:08]} 50. Kf4 {[%clk 0:00:13]}  Kf6 {[%clk 0:00:09]} 51. g5+ {[%clk 0:00:13]}  Ke7 {[%clk 0:00:08]} 52. Kg4 {[%clk 0:00:12]}  Kd7 {[%clk 0:00:08]} 53. Kf4 {[%clk 0:00:12]}  Kc7 {[%clk 0:00:08]} 54. Bc2 {[%clk 0:00:11]}  Kb6 {[%clk 0:00:09]} 55. h4 {[%clk 0:00:12]}  Kb5 {[%clk 0:00:09]} 56. h5 {[%clk 0:00:12]}  gxh5 {[%clk 0:00:07]} 57. Bxh7 {[%clk 0:00:11]}  Kc4 {[%clk 0:00:07]} 58. Bb1 {[%clk 0:00:09]}  Bd4 {[%clk 0:00:06]} 59. Ke4 {[%clk 0:00:08]}  Be5 {[%clk 0:00:05]} 60. Kf5 {[%clk 0:00:07]}  b3 {[%clk 0:00:04]} 61. Ke4 {[%clk 0:00:06]}  h4 {[%clk 0:00:05]} 62. Kf3 {[%clk 0:00:06]}  h3 {[%clk 0:00:05]} 63. g6 {[%clk 0:00:05]}  h2 {[%clk 0:00:05]} 64. Kg2 {[%clk 0:00:05]}  Kc3 {[%clk 0:00:03]} 65. g7 {[%clk 0:00:05]}  Bxg7 {[%clk 0:00:01]} 66. Kxh2 {[%clk 0:00:05]}  Kb2 {[%clk 0:00:01]} 67. Be4 {[%clk 0:00:05]}  Kc1 {[%clk 0:00:02]} 68. Kg3 {[%clk 0:00:05]}  b2 {[%clk 0:00:03]} 69. Kg4 {[%clk 0:00:05]}  b1=Q {[%clk 0:00:04]} 70. Bxb1 {[%clk 0:00:06]}  Kxb1 {[%clk 0:00:03]} 71. Kf5 {[%clk 0:00:07]}  Be5 {[%clk 0:00:02]} 72. Ke6 {[%clk 0:00:07]}  Kc2 {[%clk 0:00:02]} 73. Kd7 {[%clk 0:00:07]}  Kc3 {[%clk 0:00:03]} 74. Kc7 {[%clk 0:00:07]}  Kd4 {[%clk 0:00:04]} 75. Kc6 {[%clk 0:00:08]}  Ke4 {[%clk 0:00:05]} 76. Kd7 {[%clk 0:00:07]}  Kxd5 {[%clk 0:00:06]} 77. Ke7 {[%clk 0:00:07]}  Bf4 {[%clk 0:00:06]} 78. Kf6 {[%clk 0:00:07]}  Be3 {[%clk 0:00:07]} 79. Kf5 {[%clk 0:00:08]}  Kd4 {[%clk 0:00:07]} 80. Ke6 {[%clk 0:00:08]}  d5 {[%clk 0:00:07]} 81. Kd6 {[%clk 0:00:08]}  Kc4 {[%clk 0:00:08]} 82. Kc6 {[%clk 0:00:08]}  d4 {[%clk 0:00:09]} 0-1


[Site "https://www.chess.com"]

[Event "Titled Tuesday Blitz November 15 Late 2022"]
[White "Rorrer, Grayson"]
[Black "Petrovic, Aleksa"]
[WhiteFideId "30944996"]
[BlackFideId "967629"]
[WhiteElo "2130"]
[BlackElo "2224"]
[Result "1-0"]
[Round "09"]
[TimeControl "180+1"]
[Date "2022.11.16"]
[WhiteClock "0:00:06"]
[BlackClock "0:00:03"]

1. e4 {[%clk 0:03:00]}  e6 {[%clk 0:02:58]} 2. d4 {[%clk 0:02:58]}  d5 {[%clk 0:02:58]} 3. Nd2 {[%clk 0:02:59]}  c5 {[%clk 0:02:57]} 4. exd5 {[%clk 0:02:58]}  exd5 {[%clk 0:02:57]} 5. Ngf3 {[%clk 0:02:58]}  Nf6 {[%clk 0:02:56]} 6. Bb5+ {[%clk 0:02:57]}  Nc6 {[%clk 0:02:56]} 7. O-O {[%clk 0:02:54]}  Be7 {[%clk 0:02:56]} 8. dxc5 {[%clk 0:02:49]}  Bxc5 {[%clk 0:02:53]} 9. Nb3 {[%clk 0:02:49]}  Bb6 {[%clk 0:02:50]} 10. h3 {[%clk 0:02:41]}  O-O {[%clk 0:02:49]} 11. c3 {[%clk 0:02:41]}  Qd6 {[%clk 0:02:47]} 12. Re1 {[%clk 0:02:29]}  Bxh3 {[%clk 0:02:42]} 13. gxh3 {[%clk 0:01:48]}  Qg3+ {[%clk 0:02:43]} 14. Kh1 {[%clk 0:01:49]}  Qxh3+ {[%clk 0:02:28]} 15. Nh2 {[%clk 0:01:48]}  Ne4 {[%clk 0:01:45]} 16. Rxe4 {[%clk 0:01:38]}  dxe4 {[%clk 0:01:46]} 17. Qg1 {[%clk 0:01:28]}  Rad8 {[%clk 0:01:35]} 18. Be2 {[%clk 0:01:07]}  Ne5 {[%clk 0:01:18]} 19. Qg2 {[%clk 0:01:05]}  Qh4 {[%clk 0:01:00]} 20. Bg5 {[%clk 0:01:03]}  Qxf2 {[%clk 0:00:55]} 21. Bxd8 {[%clk 0:00:50]}  Qxg2+ {[%clk 0:00:39]} 22. Kxg2 {[%clk 0:00:51]}  Bxd8 {[%clk 0:00:39]} 23. Nc5 {[%clk 0:00:45]}  f5 {[%clk 0:00:36]} 24. Rd1 {[%clk 0:00:41]}  f4 {[%clk 0:00:29]} 25. Nxe4 {[%clk 0:00:38]}  Bb6 {[%clk 0:00:24]} 26. Rd5 {[%clk 0:00:35]}  Ng6 {[%clk 0:00:20]} 27. Nf3 {[%clk 0:00:34]}  h6 {[%clk 0:00:19]} 28. Bd3 {[%clk 0:00:34]}  Ne7 {[%clk 0:00:19]} 29. Rd7 {[%clk 0:00:34]}  Nf5 {[%clk 0:00:19]} 30. c4 {[%clk 0:00:24]}  g5 {[%clk 0:00:17]} 31. Ne5 {[%clk 0:00:20]}  Nh4+ {[%clk 0:00:12]} 32. Kf1 {[%clk 0:00:19]}  f3 {[%clk 0:00:04]} 33. Ng4 {[%clk 0:00:16]}  h5 {[%clk 0:00:03]} 34. Nef6+ {[%clk 0:00:14]}  Rxf6 {[%clk 0:00:03]} 35. Nxf6+ {[%clk 0:00:15]}  Kf8 {[%clk 0:00:04]} 36. Nxh5 {[%clk 0:00:15]}  g4 {[%clk 0:00:04]} 37. b4 {[%clk 0:00:13]}  Be3 {[%clk 0:00:03]} 38. c5 {[%clk 0:00:08]}  Bg5 {[%clk 0:00:03]} 39. Rxb7 {[%clk 0:00:06]} 1-0


[Site "https://www.chess.com"]

[Event "Titled Tuesday Blitz November 15 Late 2022"]
[White "Sattarov, Bobir"]
[Black "Kamsky, Gata"]
[WhiteFideId "14203081"]
[BlackFideId "2000024"]
[WhiteElo "2354"]
[BlackElo "2666"]
[Result "0-1"]
[Round "09"]
[TimeControl "180+1"]
[Date "2022.11.15"]
[WhiteClock "0:00:01"]
[BlackClock "0:00:14"]

1. e4 {[%clk 0:03:00]}  c6 {[%clk 0:02:57]} 2. c4 {[%clk 0:03:00]}  d6 {[%clk 0:02:36]} 3. d4 {[%clk 0:02:59]}  e5 {[%clk 0:02:36]} 4. Nf3 {[%clk 0:02:59]}  Nd7 {[%clk 0:02:31]} 5. Nc3 {[%clk 0:02:58]}  g6 {[%clk 0:02:29]} 6. Be2 {[%clk 0:02:56]}  Bg7 {[%clk 0:02:28]} 7. Be3 {[%clk 0:02:55]}  Ngf6 {[%clk 0:02:25]} 8. h3 {[%clk 0:02:43]}  O-O {[%clk 0:02:24]} 9. O-O {[%clk 0:02:43]}  exd4 {[%clk 0:02:21]} 10. Nxd4 {[%clk 0:02:41]}  Re8 {[%clk 0:02:22]} 11. Qc2 {[%clk 0:02:28]}  Nc5 {[%clk 0:02:17]} 12. Bf3 {[%clk 0:02:21]}  a5 {[%clk 0:02:09]} 13. Rad1 {[%clk 0:02:19]}  Qe7 {[%clk 0:01:55]} 14. Rfe1 {[%clk 0:02:18]}  a4 {[%clk 0:01:45]} 15. b4 {[%clk 0:01:33]}  axb3 {[%clk 0:01:43]} 16. axb3 {[%clk 0:01:34]}  h5 {[%clk 0:01:22]} 17. Bf4 {[%clk 0:01:25]}  Nfd7 {[%clk 0:01:00]} 18. b4 {[%clk 0:01:24]}  Qf6 {[%clk 0:00:50]} 19. Be3 {[%clk 0:01:17]}  Ne6 {[%clk 0:00:49]} 20. Qb3 {[%clk 0:00:49]}  Ne5 {[%clk 0:00:47]} 21. Be2 {[%clk 0:00:49]}  Nf4 {[%clk 0:00:46]} 22. Bf1 {[%clk 0:00:45]}  h4 {[%clk 0:00:45]} 23. Nce2 {[%clk 0:00:33]}  Nxe2+ {[%clk 0:00:34]} 24. Bxe2 {[%clk 0:00:30]}  g5 {[%clk 0:00:33]} 25. Nf5 {[%clk 0:00:20]}  Bxf5 {[%clk 0:00:32]} 26. exf5 {[%clk 0:00:21]}  Qxf5 {[%clk 0:00:28]} 27. Rxd6 {[%clk 0:00:17]}  g4 {[%clk 0:00:28]} 28. hxg4 {[%clk 0:00:17]}  Nxg4 {[%clk 0:00:28]} 29. Bxg4 {[%clk 0:00:15]}  Qxg4 {[%clk 0:00:28]} 30. Qd1 {[%clk 0:00:12]}  Qxc4 {[%clk 0:00:25]} 31. Rd7 {[%clk 0:00:11]}  Ra1 {[%clk 0:00:23]} 32. Qd2 {[%clk 0:00:04]}  Rxe1+ {[%clk 0:00:22]} 33. Qxe1 {[%clk 0:00:05]}  Qg4 {[%clk 0:00:21]} 34. Qd1 {[%clk 0:00:03]}  Qxd1+ {[%clk 0:00:20]} 35. Rxd1 {[%clk 0:00:04]}  Bf6 {[%clk 0:00:19]} 36. Bc5 {[%clk 0:00:03]}  Kg7 {[%clk 0:00:18]} 37. Kh2 {[%clk 0:00:04]}  Kg6 {[%clk 0:00:18]} 38. Rd7 {[%clk 0:00:03]}  b5 {[%clk 0:00:18]} 39. Kh3 {[%clk 0:00:03]}  Re6 {[%clk 0:00:18]} 40. f3 {[%clk 0:00:02]}  Bg5 {[%clk 0:00:18]} 41. Rc7 {[%clk 0:00:02]}  f6 {[%clk 0:00:17]} 42. Rc8 {[%clk 0:00:02]}  Kf5 {[%clk 0:00:17]} 43. Ra8 {[%clk 0:00:02]}  Kg6 {[%clk 0:00:16]} 44. Ra2 {[%clk 0:00:02]}  f5 {[%clk 0:00:16]} 45. Ra6 {[%clk 0:00:02]}  Kh5 {[%clk 0:00:15]} 46. Bf2 {[%clk 0:00:01]}  Re2 {[%clk 0:00:14]} 0-1


[Site "https://www.chess.com"]

[Event "Titled Tuesday Blitz November 15 Late 2022"]
[White "Sohal, Tanraj"]
[Black "Li, Xueyi"]
[WhiteFideId "2608499"]
[BlackFideId "8605912"]
[WhiteElo "2200"]
[BlackElo "2197"]
[Result "1-0"]
[Round "09"]
[TimeControl "180+1"]
[Date "2022.11.16"]
[WhiteClock "0:00:54"]
[BlackClock "0:00:06"]

1. d4 {[%clk 0:03:00]}  d5 {[%clk 0:02:56]} 2. Nf3 {[%clk 0:03:01]}  c5 {[%clk 0:02:55]} 3. Bf4 {[%clk 0:03:02]}  Nc6 {[%clk 0:02:50]} 4. e3 {[%clk 0:03:02]}  Nf6 {[%clk 0:02:48]} 5. c3 {[%clk 0:03:01]}  Qb6 {[%clk 0:02:47]} 6. Qc1 {[%clk 0:02:58]}  Bf5 {[%clk 0:02:42]} 7. h3 {[%clk 0:02:58]}  h6 {[%clk 0:02:41]} 8. Be2 {[%clk 0:02:58]}  e6 {[%clk 0:02:42]} 9. O-O {[%clk 0:02:58]}  Be7 {[%clk 0:02:42]} 10. a3 {[%clk 0:02:59]}  O-O {[%clk 0:02:38]} 11. b4 {[%clk 0:02:59]}  cxb4 {[%clk 0:02:38]} 12. axb4 {[%clk 0:02:58]}  Rfc8 {[%clk 0:02:32]} 13. Qb2 {[%clk 0:02:58]}  a5 {[%clk 0:02:31]} 14. b5 {[%clk 0:02:58]}  Nb8 {[%clk 0:02:19]} 15. Nbd2 {[%clk 0:02:58]}  Nbd7 {[%clk 0:02:18]} 16. c4 {[%clk 0:02:57]}  dxc4 {[%clk 0:02:12]} 17. Nxc4 {[%clk 0:02:57]}  Qd8 {[%clk 0:02:12]} 18. Rfc1 {[%clk 0:02:48]}  Bb4 {[%clk 0:02:05]} 19. Nd6 {[%clk 0:02:46]}  Bxd6 {[%clk 0:02:01]} 20. Bxd6 {[%clk 0:02:47]}  Nb6 {[%clk 0:02:00]} 21. Bc5 {[%clk 0:02:43]}  Nbd5 {[%clk 0:01:55]} 22. Ne5 {[%clk 0:02:38]}  Nd7 {[%clk 0:01:37]} 23. Nxd7 {[%clk 0:02:34]}  Qxd7 {[%clk 0:01:34]} 24. b6 {[%clk 0:02:34]}  Qd8 {[%clk 0:01:28]} 25. Qb3 {[%clk 0:02:31]}  Qg5 {[%clk 0:01:19]} 26. Bf3 {[%clk 0:02:21]}  Bxh3 {[%clk 0:01:15]} 27. Kf1 {[%clk 0:02:21]}  Bg4 {[%clk 0:01:14]} 28. Bxg4 {[%clk 0:02:03]}  Qxg4 {[%clk 0:01:14]} 29. Qb5 {[%clk 0:02:03]}  Qh4 {[%clk 0:00:59]} 30. Kg1 {[%clk 0:02:03]}  Nf6 {[%clk 0:00:59]} 31. Be7 {[%clk 0:01:50]}  Rxc1+ {[%clk 0:00:58]} 32. Rxc1 {[%clk 0:01:50]}  a4 {[%clk 0:00:59]} 33. Ra1 {[%clk 0:01:48]}  a3 {[%clk 0:00:59]} 34. Rxa3 {[%clk 0:01:36]}  Rxa3 {[%clk 0:00:59]} 35. Bxa3 {[%clk 0:01:37]}  Ng4 {[%clk 0:00:59]} 36. Qe8+ {[%clk 0:01:37]}  Kh7 {[%clk 0:00:58]} 37. Qxf7 {[%clk 0:01:38]}  Qh2+ {[%clk 0:00:57]} 38. Kf1 {[%clk 0:01:38]}  Qh1+ {[%clk 0:00:56]} 39. Ke2 {[%clk 0:01:39]}  Qxg2 {[%clk 0:00:57]} 40. Bf8 {[%clk 0:01:37]}  Nf6 {[%clk 0:00:52]} 41. Qxe6 {[%clk 0:01:34]}  h5 {[%clk 0:00:48]} 42. Be7 {[%clk 0:01:30]}  Ne4 {[%clk 0:00:12]} 43. Qf5+ {[%clk 0:01:26]}  Kg8 {[%clk 0:00:11]} 44. Qf4 {[%clk 0:00:57]}  g6 {[%clk 0:00:08]} 45. Qf8+ {[%clk 0:00:53]}  Kh7 {[%clk 0:00:08]} 46. Qf7+ {[%clk 0:00:53]}  Kh6 {[%clk 0:00:07]} 47. Bf8+ {[%clk 0:00:54]}  Kg5 {[%clk 0:00:06]} 48. Qf4# {[%clk 0:00:54]} 1-0


[Site "https://www.chess.com"]

[Event "Titled Tuesday Blitz November 15 Late 2022"]
[White "Souleidis, Georgios"]
[Black "Torres Dominguez, David"]
[WhiteFideId "4206827"]
[BlackFideId "2220857"]
[WhiteElo "2401"]
[BlackElo "2037"]
[Result "1-0"]
[Round "09"]
[TimeControl "180+1"]
[Date "2022.11.16"]
[WhiteClock "0:00:12"]
[BlackClock "0:00:03"]

1. e4 {[%clk 0:03:00]}  e6 {[%clk 0:02:57]} 2. d4 {[%clk 0:03:00]}  d5 {[%clk 0:02:56]} 3. Nc3 {[%clk 0:03:00]}  Bb4 {[%clk 0:02:54]} 4. exd5 {[%clk 0:03:00]}  exd5 {[%clk 0:02:50]} 5. Bd3 {[%clk 0:03:00]}  Nc6 {[%clk 0:02:46]} 6. Nf3 {[%clk 0:02:58]}  Bg4 {[%clk 0:02:44]} 7. O-O {[%clk 0:02:53]}  Nge7 {[%clk 0:02:39]} 8. h3 {[%clk 0:02:44]}  Bh5 {[%clk 0:02:35]} 9. a3 {[%clk 0:02:39]}  Bxc3 {[%clk 0:02:32]} 10. bxc3 {[%clk 0:02:40]}  Qd6 {[%clk 0:02:25]} 11. a4 {[%clk 0:02:37]}  O-O {[%clk 0:02:22]} 12. Re1 {[%clk 0:02:33]}  Bg6 {[%clk 0:02:08]} 13. Ba3 {[%clk 0:02:29]}  Qd7 {[%clk 0:02:06]} 14. Bb5 {[%clk 0:02:16]}  Rfe8 {[%clk 0:02:02]} 15. Ne5 {[%clk 0:02:14]}  Qf5 {[%clk 0:01:48]} 16. Bxe7 {[%clk 0:01:35]}  Rxe7 {[%clk 0:01:44]} 17. Nxc6 {[%clk 0:01:29]}  Rxe1+ {[%clk 0:01:41]} 18. Qxe1 {[%clk 0:01:30]}  bxc6 {[%clk 0:01:39]} 19. Bxc6 {[%clk 0:01:30]}  Rb8 {[%clk 0:01:31]} 20. Qe7 {[%clk 0:01:17]}  Qxc2 {[%clk 0:01:22]} 21. Qxc7 {[%clk 0:01:13]}  Rb1+ {[%clk 0:01:17]} 22. Rxb1 {[%clk 0:01:13]}  Qxb1+ {[%clk 0:01:17]} 23. Kh2 {[%clk 0:01:13]}  h6 {[%clk 0:01:11]} 24. Bxd5 {[%clk 0:01:13]}  Qc2 {[%clk 0:01:02]} 25. f3 {[%clk 0:01:01]}  Qxa4 {[%clk 0:00:58]} 26. c4 {[%clk 0:00:50]}  a5 {[%clk 0:00:45]} 27. Be4 {[%clk 0:00:38]}  Bxe4 {[%clk 0:00:38]} 28. fxe4 {[%clk 0:00:39]}  Qd1 {[%clk 0:00:36]} 29. Qc8+ {[%clk 0:00:34]}  Kh7 {[%clk 0:00:34]} 30. Qf5+ {[%clk 0:00:35]}  Kg8 {[%clk 0:00:33]} 31. Qxa5 {[%clk 0:00:34]}  Qxd4 {[%clk 0:00:30]} 32. Qd5 {[%clk 0:00:34]}  Qf2 {[%clk 0:00:27]} 33. Qf5 {[%clk 0:00:24]}  Qd4 {[%clk 0:00:19]} 34. c5 {[%clk 0:00:23]}  g6 {[%clk 0:00:16]} 35. Qd5 {[%clk 0:00:22]}  Qe3 {[%clk 0:00:13]} 36. c6 {[%clk 0:00:13]}  Qf4+ {[%clk 0:00:12]} 37. Kg1 {[%clk 0:00:14]}  Qe3+ {[%clk 0:00:11]} 38. Kf1 {[%clk 0:00:14]}  Qf4+ {[%clk 0:00:08]} 39. Ke2 {[%clk 0:00:14]}  Qg3 {[%clk 0:00:06]} 40. e5 {[%clk 0:00:13]}  Qf4 {[%clk 0:00:03]} 41. c7 {[%clk 0:00:12]} 1-0


[Site "https://www.chess.com"]

[Event "Titled Tuesday Blitz November 15 Late 2022"]
[White "Stanisz, Patryk"]
[Black "Sanchez, Robert"]
[WhiteFideId "1123106"]
[BlackFideId "2034360"]
[WhiteElo "2069"]
[BlackElo "2307"]
[Result "1-0"]
[Round "09"]
[TimeControl "180+1"]
[Date "2022.11.16"]
[WhiteClock "0:00:06"]
[BlackClock "0:00:10"]

1. d4 {[%clk 0:03:00]}  d5 {[%clk 0:02:58]} 2. c4 {[%clk 0:03:01]}  e6 {[%clk 0:02:58]} 3. Nc3 {[%clk 0:03:01]}  Nf6 {[%clk 0:02:58]} 4. Nf3 {[%clk 0:03:02]}  Be7 {[%clk 0:02:59]} 5. Bf4 {[%clk 0:03:01]}  O-O {[%clk 0:02:58]} 6. e3 {[%clk 0:03:02]}  c6 {[%clk 0:02:55]} 7. Rc1 {[%clk 0:03:02]}  Nbd7 {[%clk 0:02:55]} 8. h3 {[%clk 0:03:03]}  h6 {[%clk 0:02:54]} 9. a3 {[%clk 0:03:02]}  Re8 {[%clk 0:02:54]} 10. cxd5 {[%clk 0:03:02]}  exd5 {[%clk 0:02:53]} 11. Bd3 {[%clk 0:03:01]}  Nf8 {[%clk 0:02:53]} 12. O-O {[%clk 0:03:01]}  Bd6 {[%clk 0:02:45]} 13. Be5 {[%clk 0:02:58]}  Bxe5 {[%clk 0:02:41]} 14. Nxe5 {[%clk 0:02:59]}  N6d7 {[%clk 0:02:34]} 15. f4 {[%clk 0:02:59]}  f6 {[%clk 0:02:33]} 16. Nxd7 {[%clk 0:02:52]}  Bxd7 {[%clk 0:02:33]} 17. Qf3 {[%clk 0:02:53]}  Qb6 {[%clk 0:02:26]} 18. Rc2 {[%clk 0:02:52]}  Re7 {[%clk 0:02:23]} 19. Re2 {[%clk 0:02:37]}  Rae8 {[%clk 0:02:21]} 20. Kh2 {[%clk 0:02:36]}  f5 {[%clk 0:02:05]} 21. g3 {[%clk 0:02:35]}  Qc7 {[%clk 0:01:50]} 22. g4 {[%clk 0:02:35]}  fxg4 {[%clk 0:01:48]} 23. hxg4 {[%clk 0:02:35]}  Ne6 {[%clk 0:01:44]} 24. Kg2 {[%clk 0:02:32]}  Rf8 {[%clk 0:01:39]} 25. Rh1 {[%clk 0:02:13]}  Ng5 {[%clk 0:01:35]} 26. Qg3 {[%clk 0:02:05]}  Ne4 {[%clk 0:01:30]} 27. Nxe4 {[%clk 0:01:53]}  dxe4 {[%clk 0:01:29]} 28. Bc4+ {[%clk 0:01:53]}  Be6 {[%clk 0:01:30]} 29. Bxe6+ {[%clk 0:01:50]}  Rxe6 {[%clk 0:01:30]} 30. f5 {[%clk 0:01:50]}  Rd6 {[%clk 0:01:21]} 31. Rc2 {[%clk 0:01:44]}  Qe7 {[%clk 0:01:16]} 32. Rc5 {[%clk 0:01:41]}  Rd5 {[%clk 0:01:10]} 33. Rhc1 {[%clk 0:01:36]}  Rf7 {[%clk 0:01:02]} 34. Rxd5 {[%clk 0:01:05]}  cxd5 {[%clk 0:01:03]} 35. Rc5 {[%clk 0:01:06]}  Qd7 {[%clk 0:00:55]} 36. Qb8+ {[%clk 0:00:53]}  Rf8 {[%clk 0:00:51]} 37. Qxa7 {[%clk 0:00:47]}  h5 {[%clk 0:00:48]} 38. Qa5 {[%clk 0:00:19]}  hxg4 {[%clk 0:00:41]} 39. Rxd5 {[%clk 0:00:20]}  Qf7 {[%clk 0:00:41]} 40. Rd8 {[%clk 0:00:17]}  Qh5 {[%clk 0:00:33]} 41. Rxf8+ {[%clk 0:00:16]}  Kxf8 {[%clk 0:00:33]} 42. Qd8+ {[%clk 0:00:15]}  Kf7 {[%clk 0:00:32]} 43. Qd5+ {[%clk 0:00:10]}  Kf8 {[%clk 0:00:19]} 44. Qd6+ {[%clk 0:00:10]}  Kg8 {[%clk 0:00:14]} 45. Qe6+ {[%clk 0:00:07]}  Kh7 {[%clk 0:00:11]} 46. Qg6+ {[%clk 0:00:06]}  Qxg6 {[%clk 0:00:11]} 47. fxg6+ {[%clk 0:00:07]}  Kxg6 {[%clk 0:00:11]} 48. Kg3 {[%clk 0:00:07]}  Kf5 {[%clk 0:00:10]} 49. a4 {[%clk 0:00:06]}  b6 {[%clk 0:00:10]} 50. b4 {[%clk 0:00:07]}  g5 {[%clk 0:00:10]} 51. a5 {[%clk 0:00:06]} 1-0


[Site "https://www.chess.com"]

[Event "Titled Tuesday Blitz November 15 Late 2022"]
[White "Steinberg, Nitzan"]
[Black "Estrada Nieto, Julian"]
[WhiteFideId "2801795"]
[BlackFideId "5101018"]
[WhiteElo "2491"]
[BlackElo "2221"]
[Result "1-0"]
[Round "09"]
[TimeControl "180+1"]
[Date "2022.11.15"]
[WhiteClock "0:00:52"]
[BlackClock "0:00:01"]

1. e4 {[%clk 0:03:00]}  e5 {[%clk 0:02:59]} 2. Nf3 {[%clk 0:03:01]}  Nc6 {[%clk 0:03:00]} 3. Bc4 {[%clk 0:03:00]}  Bc5 {[%clk 0:02:59]} 4. c3 {[%clk 0:03:00]}  Nf6 {[%clk 0:02:59]} 5. d3 {[%clk 0:03:00]}  d6 {[%clk 0:02:59]} 6. a4 {[%clk 0:03:00]}  a5 {[%clk 0:02:58]} 7. O-O {[%clk 0:02:59]}  h6 {[%clk 0:02:57]} 8. h3 {[%clk 0:02:57]}  O-O {[%clk 0:02:49]} 9. Nbd2 {[%clk 0:02:53]}  Ba7 {[%clk 0:02:29]} 10. Re1 {[%clk 0:02:52]}  Ne7 {[%clk 0:02:28]} 11. Nf1 {[%clk 0:02:52]}  Ng6 {[%clk 0:02:27]} 12. Ng3 {[%clk 0:02:51]}  c6 {[%clk 0:02:24]} 13. Bb3 {[%clk 0:02:51]}  Be6 {[%clk 0:02:23]} 14. Be3 {[%clk 0:02:49]}  Re8 {[%clk 0:02:15]} 15. Bc2 {[%clk 0:02:37]}  Bxe3 {[%clk 0:02:06]} 16. fxe3 {[%clk 0:02:35]}  d5 {[%clk 0:02:00]} 17. exd5 {[%clk 0:02:31]}  cxd5 {[%clk 0:01:59]} 18. d4 {[%clk 0:02:31]}  e4 {[%clk 0:01:57]} 19. Nd2 {[%clk 0:02:28]}  Qd6 {[%clk 0:01:39]} 20. Ne2 {[%clk 0:02:28]}  Nh4 {[%clk 0:01:23]} 21. Rf1 {[%clk 0:02:23]}  Nf5 {[%clk 0:01:13]} 22. Rxf5 {[%clk 0:02:18]}  Bxf5 {[%clk 0:01:13]} 23. Qe1 {[%clk 0:02:16]}  Nh7 {[%clk 0:01:02]} 24. Qf2 {[%clk 0:02:13]}  Bd7 {[%clk 0:00:56]} 25. Rf1 {[%clk 0:02:11]}  Re7 {[%clk 0:00:48]} 26. Bb3 {[%clk 0:02:02]}  Be6 {[%clk 0:00:42]} 27. Ba2 {[%clk 0:01:52]}  Rf8 {[%clk 0:00:34]} 28. Qh4 {[%clk 0:01:51]}  f5 {[%clk 0:00:29]} 29. c4 {[%clk 0:01:24]}  Rf6 {[%clk 0:00:16]} 30. Nc3 {[%clk 0:01:10]}  dxc4 {[%clk 0:00:15]} 31. d5 {[%clk 0:01:05]}  Bf7 {[%clk 0:00:11]} 32. Nxc4 {[%clk 0:01:05]}  Qb4 {[%clk 0:00:10]} 33. Qg3 {[%clk 0:01:00]}  Rc7 {[%clk 0:00:04]} 34. Qxc7 {[%clk 0:00:59]}  Rg6 {[%clk 0:00:01]} 35. Ne5 {[%clk 0:00:52]} 1-0


[Site "https://www.chess.com"]